fUSD/lending_fUSD_20250123
["ID","MTS","AMOUNT","RATE_DAILY","PERIOD"]
[350049761,1737592247092,-1758.63,0.00020173,2]
[350049762,1737592247102,-500.0,0.00020173,2]
[350049763,1737592247112,-500.0,0.00020173,2]
[350049764,1737592247123,-615.8,0.00020173,2]
[350049765,1737592247133,-500.0,0.00020173,2]
[350049766,1737592247143,-500.0,0.00020173,2]
[350049767,1737592247153,-502.3,0.00020173,2]
[350049768,1737592247163,-742.49,0.00020173,2]
[350049769,1737592247173,-500.0,0.00020173,2]
[350049770,1737592247183,-500.0,0.00020173,2]
[350049771,1737592247192,-957.33,0.00020173,2]
[350049772,1737592247202,-1045.68,0.00020173,2]
[350049773,1737592247212,-500.0,0.00020173,2]
[350049774,1737592247221,-500.0,0.00020173,2]
[350049775,1737592247231,-157.875369,0.00020173,2]
[350049776,1737592247241,-1134.72,0.00020173,2]
[350049777,1737592247250,-1402.15,0.00020173,2]
[350049778,1737592247260,-500.0,0.00020173,2]
[350049779,1737592247269,-522.7,0.00020173,2]
[350049780,1737592247279,-1310.68,0.00020173,2]
[350049781,1737592247289,-500.0,0.00020173,2]
[350049782,1737592247299,-743.32,0.00020173,2]
[350049783,1737592247309,-3097.06,0.00020173,2]
[350049784,1737592247319,-181.209208,0.00020173,2]
[350049785,1737592247329,-500.0,0.00020173,2]
[350049786,1737592247339,-1346.31,0.00020173,2]
[350049787,1737592247349,-500.0,0.00020173,2]
[350049788,1737592247359,-5482.58,0.00020173,2]
[350049789,1737592247368,-500.0,0.00020173,2]
[350049790,1737592247378,-2248.49,0.00020173,2]
[350049791,1737592247387,-500.0,0.00020173,2]
[350049792,1737592247396,-842.65,0.00020173,2]
[350049793,1737592247406,-500.0,0.00020173,2]
[350049794,1737592247416,-500.0,0.00020173,2]
[350049795,1737592247425,-1128.96,0.00020173,2]
[350049796,1737592247435,-500.0,0.00020173,2]
[350049797,1737592247444,-215.24823034,0.00020173,2]
[350049798,1737592247454,-1154.82,0.00020173,2]
[350049799,1737592247463,-2161.8,0.00020173,2]
[350049800,1737592247473,-508.83939441,0.00020173,2]
[350049801,1737592247483,-500.0,0.00020173,2]
[350049802,1737592247492,-157.875368,0.00020173,2]
[350049803,1737592247502,-838.78,0.00020173,2]
[350049804,1737592247511,-500.0,0.00020173,2]
[350049805,1737592247520,-1058.0,0.00020173,2]
[350049806,1737592247529,-500.0,0.00020173,2]
[350049807,1737592247539,-1595.19,0.00020173,2]
[350049808,1737592247549,-2441.82,0.00020173,2]
[350049809,1737592247558,-500.0,0.00020173,2]
[350049810,1737592247571,-181.20921,0.00020173,2]
[350049811,1737592247580,-500.0,0.00020173,2]
[350049812,1737592247590,-500.0,0.00020173,2]
[350049813,1737592247599,-500.0,0.00020173,2]
[350049814,1737592247611,-500.0,0.00020173,2]
[350049815,1737592247620,-315.5286787,0.00020173,2]
[350049816,1737592247630,-1029.0,0.00020173,2]
[350049817,1737592247639,-500.0,0.00020173,2]
[350049818,1737592247651,-500.0,0.00020173,2]
[350049819,1737592247662,-3432.96,0.00020173,2]
[350049820,1737592247671,-500.0,0.00020173,2]
[350049821,1737592247680,-1475.44,0.00020173,2]
[350049822,1737592247690,-1427.47,0.00020173,2]
[350049823,1737592247699,-500.0,0.00020173,2]
[350049824,1737592247709,-214.02466953,0.00020176,2]
[350049825,1737592247718,-1985.0,0.000202,2]
[350049826,1737592247728,-635.02845419,0.00020272,2]
[350049827,1737592247738,-500.0,0.00020272,2]
[350049828,1737592247748,-500.0,0.00020272,2]
[350049829,1737592247758,-506.65,0.00020272,2]
[350049830,1737592247767,-500.0,0.00020272,2]
[350049831,1737592247776,-500.0,0.00020272,2]
[350049832,1737592247786,-500.0,0.00020272,2]
[350049833,1737592247795,-500.0,0.00020272,2]
[350049834,1737592247805,-500.0,0.00020272,2]
[350049835,1737592247814,-500.0,0.00020272,2]
[350049836,1737592247824,-500.0,0.00020272,2]
[350049837,1737592247833,-500.0,0.00020272,2]
[350049838,1737592247843,-307.77,0.00020272,2]
[350049839,1737592247853,-500.0,0.00020272,2]
[350049840,1737592247862,-500.0,0.00020272,2]
[350049841,1737592247872,-500.0,0.00020272,2]
[350049842,1737592247881,-500.0,0.00020272,2]
[350049843,1737592247891,-500.0,0.00020272,2]
[350049844,1737592247901,-500.0,0.00020272,2]
[350049845,1737592247910,-500.0,0.00020272,2]
[350049846,1737592247920,-500.0,0.00020272,2]
[350049847,1737592247929,-1145.83,0.00020272,2]
[350049848,1737592247939,-500.0,0.00020272,2]
[350049849,1737592247948,-500.0,0.00020272,2]
[350049850,1737592247958,-504.55324492,0.00020272,2]
[350049851,1737592247967,-500.0,0.00020272,2]
[350049852,1737592247976,-500.0,0.00020272,2]
[350049853,1737592247986,-500.0,0.00020272,2]
[350049854,1737592247996,-1000.0,0.00020272,2]
[350049855,1737592248005,-500.0,0.00020272,2]
[350049856,1737592248016,-489.34553497,0.00020272,2]
[350049857,1737592248025,-500.0,0.00020272,2]
[350049858,1737592248035,-1034.62,0.00020272,2]
[350049859,1737592248044,-500.0,0.00020272,2]
[350049860,1737592248054,-500.0,0.00020272,2]
[350049861,1737592248064,-500.0,0.00020272,2]
[350049862,1737592248073,-500.0,0.00020272,2]
[350049863,1737592248083,-500.0,0.00020272,2]
[350049864,1737592248092,-500.0,0.00020272,2]
[350049865,1737592248103,-525.29155476,0.00020272,2]
[350049866,1737592248113,-1736.32,0.00020272,2]
[350049867,1737592248123,-500.0,0.00020272,2]
[350049868,1737592248132,-152.82163206,0.00020272,2]
[350049869,1737592248142,-500.0,0.00020272,2]
[350049870,1737592248151,-500.0,0.00020272,2]
[350049871,1737592248161,-500.0,0.00020272,2]
[350049872,1737592248171,-1943.36,0.00020272,2]
[350049873,1737592248180,-500.0,0.00020272,2]
[350049874,1737592248190,-500.0,0.00020272,2]
[350049875,1737592248200,-500.0,0.00020272,2]
[350049876,1737592248210,-500.0,0.00020272,2]
[350049877,1737592248219,-500.0,0.00020272,2]
[350049878,1737592248229,-500.0,0.00020272,2]
[350049879,1737592248241,-500.0,0.00020272,2]
[350049880,1737592248251,-537.01212071,0.00020272,2]
[350049881,1737592248260,-500.0,0.00020272,2]
[350049882,1737592248270,-500.0,0.00020272,2]
[350049883,1737592248279,-500.0,0.00020272,2]
[350049884,1737592248297,-300.0,0.00020272,2]
[350049885,1737592248306,-500.0,0.00020272,2]
[350049886,1737592248316,-500.0,0.00020272,2]
[350049887,1737592248326,-500.0,0.00020272,2]
[350049888,1737592248336,-500.0,0.00020272,2]
[350049889,1737592248346,-500.0,0.00020272,2]
[350049890,1737592248356,-500.0,0.00020272,2]
[350049891,1737592248365,-500.0,0.00020272,2]
[350049892,1737592248375,-500.0,0.00020272,2]
[350049893,1737592248384,-500.0,0.00020272,2]
[350049894,1737592248394,-500.0,0.00020272,2]
[350049895,1737592248403,-500.0,0.00020272,2]
[350049896,1737592248413,-246.48262511,0.00020272,2]
[350049897,1737592248569,-500.0,0.00020272,2]
[350049898,1737592248579,-501.41361573,0.00020272,2]
[350049899,1737592248594,-500.0,0.00020272,2]
[350049900,1737592248604,-500.0,0.00020272,2]
[350049901,1737592248614,-500.0,0.00020272,2]
[350049902,1737592248625,-500.0,0.00020272,2]
[350049903,1737592248635,-500.0,0.00020272,2]
[350049904,1737592248646,-500.0,0.00020272,2]
[350049905,1737592248657,-500.0,0.00020272,2]
[350049906,1737592248666,-500.0,0.00020272,2]
[350049907,1737592248677,-512.34034123,0.00020272,2]
[350049908,1737592248686,-500.0,0.00020272,2]
[350049909,1737592248696,-500.0,0.00020272,2]
[350049910,1737592248705,-500.0,0.00020272,2]
[350049911,1737592248715,-500.0,0.00020272,2]
[350049912,1737592248725,-500.0,0.00020272,2]
[350049913,1737592248737,-500.0,0.00020272,2]
[350049914,1737592248747,-513.14028951,0.00020272,2]
[350049915,1737592248756,-500.0,0.00020272,2]
[350049916,1737592248765,-500.0,0.00020272,2]
[350049917,1737592248775,-500.0,0.00020272,2]
[350049918,1737592248784,-500.0,0.00020272,2]
[350049919,1737592248793,-500.0,0.00020272,2]
[350049920,1737592248802,-500.0,0.00020272,2]
[350049921,1737592248812,-500.0,0.00020272,2]
[350049922,1737592248821,-500.0,0.00020272,2]
[350049923,1737592248831,-500.0,0.00020272,2]
[350049924,1737592248841,-500.0,0.00020272,2]
[350049925,1737592248850,-500.0,0.00020272,2]
[350049926,1737592248859,-500.0,0.00020272,2]
[350049927,1737592248868,-500.0,0.00020272,2]
[350049928,1737592248878,-316.22777558,0.00020272,2]
[350049929,1737592248887,-500.0,0.00020272,2]
[350049930,1737592248896,-500.0,0.00020272,2]
[350049931,1737592248906,-500.0,0.00020272,2]
[350049932,1737592248916,-500.0,0.00020272,2]
[350049933,1737592248925,-500.0,0.00020272,2]
[350049934,1737592248935,-500.0,0.00020272,2]
[350049935,1737592248944,-500.0,0.00020272,2]
[350049936,1737592248953,-500.0,0.00020272,2]
[350049937,1737592248962,-500.0,0.00020272,2]
[350049938,1737592248972,-500.0,0.00020272,2]
[350049939,1737592248983,-509.56564344,0.00020272,2]
[350049940,1737592248992,-500.0,0.00020272,2]
[350049941,1737592249003,-500.0,0.00020272,2]
[350049942,1737592249012,-500.0,0.00020272,2]
[350049943,1737592249022,-500.0,0.00020272,2]
[350049944,1737592249032,-500.0,0.00020272,2]
[350049945,1737592249042,-502.71199337,0.00020272,2]
[350049946,1737592249052,-500.0,0.00020272,2]
[350049947,1737592249062,-500.0,0.00020272,2]
[350049948,1737592249071,-500.0,0.00020272,2]
[350049949,1737592249080,-500.0,0.00020272,2]
[350049950,1737592249090,-500.0,0.00020272,2]
[350049951,1737592249100,-350.0,0.00020272,2]
[350049952,1737592249110,-5000.0,0.00020272,2]
[350049953,1737592249119,-500.0,0.00020272,2]
[350049954,1737592249128,-500.0,0.00020272,2]
[350049955,1737592249138,-500.0,0.00020272,2]
[350049956,1737592249148,-501.43465911,0.00020272,2]
[350049957,1737592249157,-632.50862155,0.00020272,2]
[350049958,1737592249166,-500.0,0.00020272,2]
[350049959,1737592249175,-500.0,0.00020273,2]
[350049960,1737592249185,-1660.3,0.00020273,2]
[350049961,1737592249194,-853.57,0.00020273,2]
[350049962,1737592249203,-1744.85,0.00020273,2]
[350049963,1737592249213,-664.0,0.00020273,2]
[350049964,1737592249221,-1360.36,0.00020273,2]
[350049965,1737592249231,-513.67,0.00020273,2]
[350049966,1737592249241,-500.0,0.00020273,2]
[350049967,1737592249251,-1129.74,0.00020273,2]
[350049968,1737592249259,-727.16,0.00020273,2]
[350049969,1737592249269,-500.0,0.00020273,2]
[350049970,1737592249278,-2069.38,0.00020273,2]
[350049971,1737592249288,-1143.31,0.00020273,2]
[350049972,1737592249297,-500.0,0.00020273,2]
[350049973,1737592249306,-774.63,0.00020273,2]
[350049974,1737592249315,-500.0,0.00020273,2]
[350049975,1737592249324,-1961.81,0.00020273,2]
[350049976,1737592249334,-500.0,0.00020273,2]
[350049977,1737592249343,-867.24,0.00020273,2]
[350049978,1737592249352,-747.21,0.00020273,2]
[350049979,1737592249361,-721.36,0.00020273,2]
[350049980,1737592249371,-500.0,0.00020273,2]
[350049981,1737592249380,-500.0,0.00020273,2]
[350049982,1737592249389,-1210.11,0.00020273,2]
[350049983,1737592249398,-500.0,0.00020273,2]
[350049984,1737592249408,-500.0,0.00020273,2]
[350049985,1737592249417,-2848.13,0.00020273,2]
[350049986,1737592249427,-500.0,0.00020273,2]
[350049987,1737592249436,-500.0,0.00020273,2]
[350049988,1737592249445,-500.0,0.00020273,2]
[350049989,1737592249455,-500.0,0.00020273,2]
[350049990,1737592249464,-500.0,0.00020273,2]
[350049991,1737592249474,-500.0,0.00020273,2]
[350049992,1737592249484,-500.0,0.00020273,2]
[350049993,1737592249494,-500.0,0.00020273,2]
[350049994,1737592249503,-500.0,0.00020273,2]
[350049995,1737592249512,-500.0,0.00020273,2]
[350049996,1737592249522,-1602.8,0.00020273,2]
[350049997,1737592249531,-500.0,0.00020273,2]
[350049998,1737592249540,-500.0,0.00020447,2]
[350049999,1737592249549,-500.0,0.00020447,2]
[350050000,1737592249559,-547.21,0.00020447,2]
[350050001,1737592249569,-500.0,0.00020447,2]
[350050002,1737592249579,-500.0,0.00020447,2]
[350050003,1737592249590,-414.102346,0.00020447,2]
[350050004,1737592249599,-292.67694348,0.00020447,2]
[350050005,1737592249608,-500.0,0.00020447,2]
[350050006,1737592249618,-372.406306,0.00020447,2]
[350050007,1737592249627,-500.0,0.00020447,2]
[350050008,1737592249636,-500.0,0.00020447,2]
[350050009,1737592249645,-500.0,0.00020447,2]
[350050010,1737592249655,-500.0,0.00020447,2]
[350050011,1737592249667,-313.80583968,0.00020447,2]
[350050012,1737592249676,-500.0,0.00020447,2]
[350050013,1737592249686,-500.0,0.00020447,2]
[350050014,1737592249696,-262.21,0.00020447,2]
[350050015,1737592249707,-500.0,0.00020447,2]
[350050016,1737592249716,-500.0,0.00020447,2]
[350050017,1737592249725,-500.0,0.00020447,2]
[350050018,1737592249735,-500.0,0.00020447,2]
[350050019,1737592249743,-500.0,0.00020447,2]
[350050020,1737592249753,-500.0,0.00020447,2]
[350050021,1737592249762,-620.2,0.00020447,2]
[350050022,1737592249771,-500.0,0.00020447,2]
[350050023,1737592249782,-385.441377,0.00020447,2]
[350050024,1737592249791,-500.0,0.00020447,2]
[350050025,1737592249801,-617.03,0.00020447,2]
[350050026,1737592249811,-198.48611287,0.00020447,2]
[350050027,1737592249820,-788.164308,0.00020447,2]
[350050028,1737592249830,-605.88,0.00020447,2]
[350050029,1737592249839,-546.81,0.00020447,2]
[350050030,1737592249850,-500.0,0.00020447,2]
[350050031,1737592249859,-500.0,0.00020447,2]
[350050032,1737592249868,-160.213225,0.00020447,2]
[350050033,1737592249878,-1375.57,0.00020447,2]
[350050034,1737592249888,-880.62,0.00020447,2]
[350050035,1737592249899,-541.89,0.00020447,2]
[350050036,1737592249910,-543.97,0.00020447,2]
[350050037,1737592249920,-500.0,0.00020447,2]
[350050038,1737592249929,-558.2,0.00020447,2]
[350050039,1737592249939,-868.4,0.00020447,2]
[350050040,1737592249949,-500.0,0.00020447,2]
[350050041,1737592249958,-731.71,0.00020447,2]
[350050042,1737592249967,-442.776508,0.00020447,2]
[350050043,1737592249976,-500.0,0.00020447,2]
[350050044,1737592249987,-500.0,0.00020447,2]
[350050045,1737592249996,-500.0,0.00020447,2]
[350050046,1737592250006,-500.0,0.00020447,2]
[350050047,1737592250015,-2862.43,0.00020447,2]
[350050048,1737592250025,-500.0,0.00020447,2]
[350050049,1737592250035,-1177.65,0.00020447,2]
[350050050,1737592250045,-558.04,0.00020447,2]
[350050051,1737592250054,-1521.24,0.00020447,2]
[350050052,1737592250064,-500.0,0.00020447,2]
[350050053,1737592250072,-780.39,0.00020447,2]
[350050054,1737592250082,-447.267534,0.00020447,2]
[350050055,1737592250090,-735.41,0.00020447,2]
[350050056,1737592250100,-500.0,0.00020447,2]
[350050057,1737592250109,-1402.72,0.00020447,2]
[350050058,1737592250118,-500.0,0.00020447,2]
[350050059,1737592250127,-1541.3,0.00020447,2]
[350050060,1737592250136,-529.70729202,0.00020447,2]
[350050061,1737592250146,-1064.8,0.00020447,2]
[350050062,1737592250155,-500.0,0.00020447,2]
[350050063,1737592250164,-1725.09,0.00020447,2]
[350050064,1737592250173,-500.0,0.00020447,2]
[350050065,1737592250182,-500.0,0.00020447,2]
[350050066,1737592250191,-500.0,0.00020447,2]
[350050067,1737592250202,-1097.56,0.00020447,2]
[350050068,1737592250213,-171.33,0.00020447,2]
[350050069,1737592250227,-500.0,0.00020447,2]
[350050070,1737592250241,-500.0,0.00020447,2]
[350050071,1737592250253,-1237.37,0.00020447,2]
[350050072,1737592250263,-263.125614,0.00020447,2]
[350050073,1737592250276,-756.58,0.00020447,2]
[350050074,1737592250289,-500.0,0.00020447,2]
[350050075,1737592250301,-2412.85,0.00020447,2]
[350050076,1737592250315,-500.0,0.00020447,2]
[350050077,1737592250327,-500.0,0.00020447,2]
[350050078,1737592250340,-500.0,0.00020447,2]
[350050079,1737592250352,-500.0,0.00020447,2]
[350050080,1737592250364,-1879.24,0.00020447,2]
[350050081,1737592250376,-500.0,0.00020447,2]
[350050082,1737592250388,-500.0,0.00020447,2]
[350050083,1737592250398,-689.77,0.00020447,2]
[350050084,1737592250410,-755.39,0.00020447,2]
[350050085,1737592250422,-271.813812,0.00020447,2]
[350050086,1737592250435,-514.18,0.00020447,2]
[350050087,1737592250446,-1758.63,0.00020447,2]
[350050088,1737592250458,-500.0,0.00020447,2]
[350050089,1737592250471,-500.0,0.00020447,2]
[350050090,1737592250483,-615.8,0.00020447,2]
[350050091,1737592250495,-500.0,0.00020447,2]
[350050092,1737592250507,-500.0,0.00020447,2]
[350050093,1737592250518,-502.3,0.00020447,2]
[350050094,1737592250531,-742.49,0.00020447,2]
[350050095,1737592250543,-500.0,0.00020447,2]
[350050096,1737592250556,-649.0,0.00020447,2]
[350050097,1737592250570,-957.33,0.00020447,2]
[350050098,1737592250582,-1045.68,0.00020447,2]
[350050099,1737592250593,-500.0,0.00020447,2]
[350050100,1737592250605,-1134.72,0.00020447,2]
[350050101,1737592250618,-1402.15,0.00020447,2]
[350050102,1737592250631,-500.0,0.00020447,2]
[350050103,1737592250643,-522.7,0.00020447,2]
[350050104,1737592250654,-1310.68,0.00020447,2]
[350050105,1737592250666,-500.0,0.00020447,2]
[350050106,1737592250676,-743.32,0.00020447,2]
[350050107,1737592250686,-3097.06,0.00020447,2]
[350050108,1737592250697,-181.209208,0.00020447,2]
[350050109,1737592250707,-500.0,0.00020447,2]
[350050110,1737592250721,-1346.31,0.00020447,2]
[350050111,1737592250735,-500.0,0.00020447,2]
[350050112,1737592250746,-5482.58,0.00020447,2]
[350050113,1737592250756,-2248.49,0.00020447,2]
[350050114,1737592250766,-500.0,0.00020447,2]
[350050115,1737592250776,-842.65,0.00020447,2]
[350050116,1737592250789,-500.0,0.00020447,2]
[350050117,1737592250801,-500.0,0.00020447,2]
[350050118,1737592250812,-1128.96,0.00020447,2]
[350050119,1737592250823,-500.0,0.00020447,2]
[350050120,1737592250833,-1154.82,0.00020447,2]
[350050121,1737592250843,-2161.8,0.00020447,2]
[350050122,1737592250854,-500.0,0.00020447,2]
[350050123,1737592250864,-838.78,0.00020447,2]
[350050124,1737592250875,-500.0,0.00020447,2]
[350050125,1737592250885,-1058.0,0.00020447,2]
[350050126,1737592250896,-500.0,0.00020447,2]
[350050127,1737592250907,-1595.19,0.00020447,2]
[350050128,1737592250919,-2441.82,0.00020447,2]
[350050129,1737592250929,-500.0,0.00020447,2]
[350050130,1737592250940,-500.0,0.00020447,2]
[350050131,1737592250951,-500.0,0.00020447,2]
[350050132,1737592250962,-500.0,0.00020447,2]
[350050133,1737592250973,-1029.0,0.00020447,2]
[350050134,1737592250983,-500.0,0.00020447,2]
[350050135,1737592250994,-500.0,0.00020447,2]
[350050136,1737592251005,-3432.96,0.00020447,2]
[350050137,1737592251015,-500.0,0.00020447,2]
[350050138,1737592251026,-1475.44,0.00020447,2]
[350050139,1737592251038,-1427.47,0.00020447,2]
[350050140,1737592251048,-500.0,0.00020447,2]
[350050141,1737592251059,-4341.15,0.000205,2]
[350050142,1737592251070,-214.02466953,0.00020521,2]
[350050143,1737592251081,-500.0,0.00020546,2]
[350050144,1737592251091,-500.0,0.00020546,2]
[350050145,1737592251102,-647.10546786,0.00020546,2]
[350050146,1737592251112,-500.0,0.00020546,2]
[350050147,1737592251123,-500.0,0.00020546,2]
[350050148,1737592251134,-500.0,0.00020546,2]
[350050149,1737592251144,-500.0,0.00020546,2]
[350050150,1737592251155,-500.0,0.00020546,2]
[350050151,1737592251165,-500.0,0.00020546,2]
[350050152,1737592251176,-1145.83,0.00020546,2]
[350050153,1737592251187,-500.0,0.00020546,2]
[350050154,1737592251198,-500.0,0.00020546,2]
[350050155,1737592251209,-1000.0,0.00020546,2]
[350050156,1737592251219,-500.0,0.00020546,2]
[350050157,1737592251230,-1034.62,0.00020546,2]
[350050158,1737592251242,-500.0,0.00020546,2]
[350050159,1737592251253,-500.0,0.00020546,2]
[350050160,1737592251263,-1736.32,0.00020546,2]
[350050161,1737592251274,-500.0,0.00020546,2]
[350050162,1737592251285,-1943.36,0.00020546,2]
[350050163,1737592251296,-500.0,0.00020546,2]
[350050164,1737592251307,-500.0,0.00020546,2]
[350050165,1737592251317,-500.0,0.00020546,2]
[350050166,1737592251328,-500.0,0.00020546,2]
[350050167,1737592251339,-500.0,0.00020546,2]
[350050168,1737592251350,-500.0,0.00020546,2]
[350050169,1737592251360,-500.0,0.00020546,2]
[350050170,1737592251371,-500.0,0.00020546,2]
[350050171,1737592251382,-541.354827,0.00020546,2]
[350050172,1737592251392,-494.0,0.00020546,2]
[350050173,1737592251403,-620.01288096,0.00020546,2]
[350050174,1737592251413,-500.0,0.00020546,2]
[350050175,1737592251424,-500.0,0.00020546,2]
[350050176,1737592251437,-500.0,0.00020546,2]
[350050177,1737592251448,-500.0,0.00020546,2]
[350050178,1737592251459,-500.0,0.00020546,2]
[350050179,1737592251470,-500.0,0.00020546,2]
[350050180,1737592251481,-500.0,0.00020546,2]
[350050181,1737592251493,-500.0,0.00020546,2]
[350050182,1737592251503,-500.0,0.00020546,2]
[350050183,1737592251514,-500.0,0.00020546,2]
[350050184,1737592251525,-500.0,0.00020546,2]
[350050185,1737592251536,-500.0,0.00020546,2]
[350050186,1737592251547,-500.0,0.00020546,2]
[350050187,1737592251557,-500.0,0.00020546,2]
[350050188,1737592251569,-500.0,0.00020546,2]
[350050189,1737592251580,-500.0,0.00020546,2]
[350050190,1737592251592,-500.0,0.00020546,2]
[350050191,1737592251603,-503.32671205,0.00020546,2]
[350050192,1737592251614,-500.0,0.00020546,2]
[350050193,1737592251626,-500.0,0.00020546,2]
[350050194,1737592251637,-500.0,0.00020546,2]
[350050195,1737592251647,-500.0,0.00020546,2]
[350050196,1737592251658,-500.0,0.00020546,2]
[350050197,1737592251669,-462.23145042,0.00020546,2]
[350050198,1737592251679,-500.0,0.00020546,2]
[350050199,1737592251690,-500.0,0.00020546,2]
[350050200,1737592251701,-500.0,0.00020546,2]
[350050201,1737592251712,-500.0,0.00020546,2]
[350050202,1737592251723,-500.0,0.00020547,2]
[350050203,1737592251733,-1660.3,0.00020547,2]
[350050204,1737592251747,-853.57,0.00020547,2]
[350050205,1737592251758,-1744.85,0.00020547,2]
[350050206,1737592251768,-664.0,0.00020547,2]
[350050207,1737592251779,-1360.36,0.00020547,2]
[350050208,1737592251790,-513.67,0.00020547,2]
[350050209,1737592251801,-500.0,0.00020547,2]
[350050210,1737592251812,-1129.74,0.00020547,2]
[350050211,1737592251822,-727.16,0.00020547,2]
[350050212,1737592251833,-500.0,0.00020547,2]
[350050213,1737592251843,-2069.38,0.00020547,2]
[350050214,1737592251854,-1143.31,0.00020547,2]
[350050215,1737592251864,-500.0,0.00020547,2]
[350050216,1737592251875,-774.63,0.00020547,2]
[350050217,1737592251885,-500.0,0.00020547,2]
[350050218,1737592251895,-1961.81,0.00020547,2]
[350050219,1737592251906,-500.0,0.00020547,2]
[350050220,1737592251916,-867.24,0.00020547,2]
[350050221,1737592251926,-747.21,0.00020547,2]
[350050222,1737592251937,-721.36,0.00020547,2]
[350050223,1737592251948,-500.0,0.00020547,2]
[350050224,1737592251959,-500.0,0.00020547,2]
[350050225,1737592251970,-1210.11,0.00020547,2]
[350050226,1737592251980,-500.0,0.00020547,2]
[350050227,1737592251994,-500.0,0.00020547,2]
[350050228,1737592252004,-2848.13,0.00020547,2]
[350050229,1737592252014,-500.0,0.00020547,2]
[350050230,1737592252024,-500.0,0.00020547,2]
[350050231,1737592252035,-500.0,0.00020547,2]
[350050232,1737592252045,-500.0,0.00020547,2]
[350050233,1737592252055,-500.0,0.00020547,2]
[350050234,1737592252066,-500.0,0.00020547,2]
[350050235,1737592252285,-500.0,0.00020547,2]
[350050236,1737592252295,-500.0,0.00020547,2]
[350050237,1737592252305,-500.0,0.00020547,2]
[350050238,1737592252314,-231.17401207,0.00020547,2]
[350050239,1737592252323,-1602.8,0.00020547,2]
[350050240,1737592252333,-500.0,0.00020547,2]
[350050241,1737592252342,-450.0,0.00020616,2]
[350050242,1737592252352,-500.0,0.00020721,2]
[350050243,1737592252361,-500.0,0.00020721,2]
[350050244,1737592252370,-547.21,0.00020721,2]
[350050245,1737592252379,-500.0,0.00020721,2]
[350050246,1737592252389,-180.16159994,0.00020721,2]
[350050247,1737592252398,-414.102346,0.00020721,2]
[350050248,1737592252407,-500.0,0.00020721,2]
[350050249,1737592252416,-372.406306,0.00020721,2]
[350050250,1737592252427,-500.0,0.00020721,2]
[350050251,1737592252436,-500.0,0.00020721,2]
[350050252,1737592252445,-500.0,0.00020721,2]
[350050253,1737592252455,-500.0,0.00020721,2]
[350050254,1737592252464,-165.640938,0.00020721,2]
[350050255,1737592252473,-500.0,0.00020721,2]
[350050256,1737592252482,-500.0,0.00020721,2]
[350050257,1737592252493,-500.0,0.00020721,2]
[350050258,1737592252502,-500.0,0.00020721,2]
[350050259,1737592252511,-500.0,0.00020721,2]
[350050260,1737592252520,-500.0,0.00020721,2]